fUST/lending_fUST_20240518
["ID","MTS","AMOUNT","RATE_DAILY","PERIOD"]
[327289385,1715965844712,-500.0,0.00018904,2]
[327289386,1715965844722,-514.82,0.00018904,2]
[327289387,1715965844731,-500.0,0.00018904,2]
[327289388,1715965844741,-1375.86,0.00018904,2]
[327289389,1715965844751,-500.0,0.00018904,2]
[327289390,1715965844761,-1921.12,0.00018904,2]
[327289391,1715965844770,-500.0,0.00018904,2]
[327289392,1715965844780,-1788.71,0.00018904,2]
[327289393,1715965844789,-17452.61281939,0.0001897,3]
[327289394,1715965844799,-14486.89796343,0.0001897,2]
[327289395,1715965844947,-500.0,0.00018969,2]
[327289396,1715965844956,-2391.21320077,0.0001897,2]
[327289397,1715965844968,-3792.79999999,0.0001897,2]
[327289398,1715965844979,-18171.36385268,0.0001897,2]
[327289399,1715965844990,-151.0,0.0001897,2]
[327289400,1715965844999,-239.284246,0.0001897,2]
[327289401,1715965845009,-239.284246,0.0001897,2]
[327289402,1715965845018,-151.0,0.0001897,2]
[327289403,1715965845028,-260.507096,0.0001897,2]
[327289404,1715965845037,-260.507096,0.0001897,2]
[327289405,1715965845047,-1719.200218,0.0001897,2]
[327289406,1715965845057,-1719.200218,0.0001897,2]
[327289407,1715965845067,-151.0,0.0001897,2]
[327289408,1715965845076,-157.237837,0.0001897,2]
[327289409,1715965845086,-157.237837,0.0001897,2]
[327289410,1715965845095,-151.0,0.0001897,2]
[327289411,1715965845104,-151.0,0.0001897,2]
[327289412,1715965845115,-151.985228,0.0001897,2]
[327289413,1715965845124,-392.03262,0.0001897,2]
[327289414,1715965845135,-392.03262,0.0001897,2]
[327289415,1715965845145,-156.886506,0.0001897,2]
[327289416,1715965845154,-156.886506,0.0001897,2]
[327289417,1715965845164,-151.0,0.0001897,2]
[327289418,1715965845173,-729.573986,0.0001897,2]
[327289419,1715965845182,-729.573986,0.0001897,2]
[327289420,1715965845191,-151.0,0.0001897,2]
[327289421,1715965845200,-226.564153,0.0001897,2]
[327289422,1715965845210,-226.564153,0.0001897,2]
[327289423,1715965845220,-151.0,0.0001897,2]
[327289424,1715965845229,-156.522748,0.0001897,2]
[327289425,1715965845239,-156.522748,0.0001897,2]
[327289426,1715965845248,-151.0,0.0001897,2]
[327289427,1715965845258,-200.2660357,0.00018991,2]
[327289428,1715965845268,-206.96693214,0.00018998,2]
[327289429,1715965845278,-534.92858456,0.00018998,7]
[327289430,1715965845287,-230.6100049,0.00018999,2]
[327289431,1715965845298,-4002.91029367,0.00019,2]
[327289432,1715965845307,-87627.91473808,0.00019,2]
[327289433,1715965845317,-154.7215013,0.00019,2]
[327289434,1715965845327,-758.95,0.00019,2]
[327289435,1715965845338,-151.0,0.00019,2]
[327289436,1715965845349,-151.0,0.00019,2]
[327289437,1715965845358,-151.0,0.00019,2]
[327289438,1715965845368,-151.0,0.00019,2]
[327289439,1715965845379,-240.196122,0.00019,2]
[327289440,1715965845390,-151.0,0.00019,2]
[327289441,1715965845400,-170.927108,0.00019,2]
[327289442,1715965845409,-151.0,0.00019,2]
[327289443,1715965845421,-151.0,0.00019,2]
[327289444,1715965845431,-239.284246,0.00019,2]
[327289445,1715965845441,-239.284246,0.00019,2]
[327289446,1715965845451,-151.0,0.00019,2]
[327289447,1715965845460,-260.507096,0.00019,2]
[327289448,1715965845470,-260.507096,0.00019,2]
[327289449,1715965845479,-1719.200218,0.00019,2]
[327289450,1715965845488,-1719.200218,0.00019,2]
[327289451,1715965845498,-289.614938,0.00019,2]
[327289453,1715965845507,-157.237837,0.00019,2]
[327289455,1715965845517,-157.237837,0.00019,2]
[327289457,1715965845526,-151.0,0.00019,2]
[327289459,1715965845535,-151.0,0.00019,2]
[327289461,1715965845544,-392.03262,0.00019,2]
[327289463,1715965845554,-392.03262,0.00019,2]
[327289465,1715965845564,-156.886506,0.00019,2]
[327289468,1715965845573,-19.04400424,0.00019,2]
[327289474,1715965845745,-500.0,0.00018999,2]
[327289476,1715965845754,-500.0,0.00018999,2]
[327289478,1715965845763,-500.0,0.00018999,2]
[327289480,1715965845773,-137.84250176,0.00019,2]
[327289481,1715965845782,-151.0,0.00019,2]
[327289482,1715965845791,-729.573986,0.00019,2]
[327289483,1715965845800,-729.573986,0.00019,2]
[327289484,1715965845810,-151.0,0.00019,2]
[327289485,1715965845820,-226.564153,0.00019,2]
[327289486,1715965845831,-226.564153,0.00019,2]
[327289487,1715965845840,-151.0,0.00019,2]
[327289488,1715965845849,-156.522748,0.00019,2]
[327289489,1715965845859,-156.522748,0.00019,2]
[327289490,1715965845869,-151.0,0.00019,2]
[327289491,1715965845879,-630.95486932,0.00019038,2]
[327289492,1715965845890,-495.0,0.00019041,2]
[327289493,1715965845899,-211.852,0.00019041,2]
[327289494,1715965845908,-270.09906497,0.00019154,2]
[327289495,1715965845917,-197.39907368,0.00019156,2]
[327289496,1715965845926,-7602.36543154,0.00019173,2]
[327289497,1715965845935,-500.0,0.00019177,2]
[327289499,1715965845944,-427.63,0.00019177,2]
[327289501,1715965845954,-500.0,0.00019178,2]
[327289502,1715965845963,-500.0,0.00019178,2]
[327289503,1715965845972,-2479.21331272,0.00019178,2]
[327289504,1715965845981,-337.86707366,0.00019178,2]
[327289505,1715965845990,-500.0,0.00019178,2]
[327289506,1715965845999,-500.0,0.00019178,2]
[327289507,1715965846008,-2479.21331272,0.00019178,2]
[327289508,1715965846018,-500.0,0.00019178,2]
[327289509,1715965846027,-302.9533545,0.00019178,2]
[327289510,1715965846037,-500.0,0.00019178,2]
[327289511,1715965846046,-2479.21331272,0.00019178,2]
[327289512,1715965846055,-500.0,0.00019178,2]
[327289513,1715965846064,-443.39626637,0.00019178,2]
[327289514,1715965846074,-500.0,0.00019178,2]
[327289515,1715965846084,-500.0,0.00019178,2]
[327289516,1715965846094,-2479.21331272,0.00019178,2]
[327289517,1715965846103,-2479.21331272,0.00019178,2]
[327289518,1715965846112,-500.0,0.00019178,2]
[327289519,1715965846122,-500.0,0.00019178,2]
[327289520,1715965846132,-2479.21331272,0.00019178,2]
[327289521,1715965846142,-500.0,0.00019178,2]
[327289522,1715965846151,-500.0,0.00019178,2]
[327289523,1715965846160,-2479.21331272,0.00019178,2]
[327289524,1715965846170,-500.0,0.00019178,2]
[327289525,1715965846180,-437.87448011,0.00019178,2]
[327289526,1715965846189,-2479.21331272,0.00019178,2]
[327289527,1715965846199,-500.0,0.00019178,2]
[327289528,1715965846208,-500.0,0.00019178,2]
[327289529,1715965846218,-2479.21331272,0.00019178,2]
[327289530,1715965846228,-500.0,0.00019178,2]
[327289531,1715965846238,-500.0,0.00019178,2]
[327289532,1715965846247,-500.0,0.00019178,2]
[327289533,1715965846257,-500.0,0.00019178,2]
[327289534,1715965846266,-500.0,0.00019178,2]
[327289535,1715965846275,-500.0,0.00019178,2]
[327289536,1715965846284,-500.0,0.00019178,2]
[327289537,1715965846294,-500.0,0.00019178,2]
[327289538,1715965846304,-2479.21331272,0.00019178,2]
[327289539,1715965846313,-500.0,0.00019178,2]
[327289540,1715965846323,-2479.21331272,0.00019178,2]
[327289541,1715965846334,-2479.21331272,0.00019178,2]
[327289542,1715965846348,-2479.21331272,0.00019178,2]
[327289543,1715965846357,-2479.21331272,0.00019178,2]
[327289544,1715965846366,-2479.21331272,0.00019178,2]
[327289545,1715965846376,-2479.21331272,0.00019178,2]
[327289546,1715965846386,-2479.21331272,0.00019178,2]
[327289547,1715965846396,-500.0,0.00019178,2]
[327289548,1715965846405,-2479.21331272,0.00019178,2]
[327289549,1715965846416,-2479.21331272,0.00019178,2]
[327289550,1715965846425,-2479.21331272,0.00019178,2]
[327289551,1715965846435,-2479.21331272,0.00019178,2]
[327289552,1715965846445,-2479.21331272,0.00019178,2]
[327289553,1715965846455,-2479.21331272,0.00019178,2]
[327289554,1715965846464,-2479.21331272,0.00019178,2]
[327289555,1715965846473,-2479.21331272,0.00019178,2]
[327289556,1715965846483,-2479.21331272,0.00019178,2]
[327289557,1715965846493,-1471.89721135,0.00019178,2]
[327289558,1715965846536,-138.76896619,0.00019178,2]
[327289559,1715965846718,-2790.30988309,0.00016437,2]
[327289560,1715965846729,-764.69011691,0.00016437,2]
[327289561,1715965846744,-177.14974001,0.00016437,2]
[327289562,1715965846754,-505.32350337,0.00016438,2]
[327289563,1715965846763,-500.0,0.00016438,2]
[327289564,1715965846773,-500.0,0.00016712,2]
[327289565,1715965846784,-150.0,0.00017019,3]
[327289566,1715965846794,-868.54713518,0.00019178,2]
[327289567,1715965846803,-2479.21331272,0.00019178,2]
[327289568,1715965846814,-1719.87230872,0.00019178,2]
[327289569,1715965936765,273.37336231,9.9e-05,2]
[327289570,1715965945781,273.37336231,9.9e-05,2]
[327289571,1715965950313,192.82,0.00010959,2]
[327289572,1715965968456,181.45563285,9.999e-05,2]
[327289573,1715965987146,154.73694719,9.999e-05,2]
[327289574,1715965991357,6790.24130704,9.999e-05,2]
[327289575,1715966001183,156.48210211,9.999e-05,2]
[327289576,1715966004366,672.12445394,9.999e-05,2]
[327289577,1715966189907,452.46697714,9.999e-05,2]
[327289578,1715966206063,156.43141822,9.999e-05,2]
[327289579,1715966304206,1581.20220046,9.999e-05,2]
[327289581,1715966594028,755.09755729,9.999e-05,2]
[327289582,1715966616864,492.7178496,0.00012302,2]
[327289583,1715966656533,156.43141822,9.999e-05,2]
[327289584,1715966735200,-362.46425825,0.00013194,2]
[327289585,1715966742679,181.45563285,9.999e-05,2]
[327289586,1715966780677,24900.0,0.00012251,2]
[327289587,1715966829090,-247.803398,0.0001323,2]
[327289588,1715966830103,-2386.16153262,0.0001323,2]
[327289589,1715966830123,-657.57503951,0.00013231,2]
[327289590,1715966831114,-151.0,0.00013231,2]
[327289591,1715966842106,-206.13833,0.00013231,2]
[327289592,1715966845363,-151.0,0.00013231,2]
[327289593,1715966945107,-181.45563285,0.0001323,2]
[327289594,1715966945129,-1896.33638333,0.00013231,2]
[327289595,1715966945154,-214.71194921,0.00013232,2]
[327289596,1715966945176,-429.94245468,0.00013232,2]
[327289597,1715966945197,-155.52380017,0.00013232,2]
[327289598,1715966945218,-201.8725689,0.00013232,2]
[327289599,1715966945239,-155.45553547,0.00013232,2]
[327289600,1715966945259,-937.68053305,0.00013232,2]
[327289601,1715966945279,-156.2364718,0.00013232,2]
[327289602,1715966945302,-1400.60904381,0.00013232,2]
[327289603,1715966945322,-446.01180885,0.00013232,2]
[327289604,1715966945345,-687.9358299,0.00013232,2]
[327289605,1715966945364,-5023.17774762,0.00013232,2]
[327289606,1715966945385,-555.58050279,0.00013233,2]
[327289607,1715966945406,-164.02781081,0.00013305,2]
[327289608,1715966945425,-1637.60821661,0.00013498,2]
[327289609,1715966945446,-246.34353574,0.000136,2]
[327289610,1715966945466,-1007.6961992,0.00013699,2]
[327289611,1715966945486,-1601.6125636,0.00013699,2]
[327289612,1715966945506,-696.594831,0.00013699,2]
[327289613,1715966970138,-156.42023526,0.000149,2]
[327289614,1715966974435,194.42788305,9.999e-05,2]
[327289615,1715966998036,196.71349201,0.000136,2]
[327290009,1715967039156,-1893.32799547,0.000149,2]
[327290010,1715967039167,-463.48710035,0.000149,2]
[327290011,1715967039176,-154.81422293,0.00014998,2]
[327290012,1715967039186,-2688.71510004,0.00014998,2]
[327290013,1715967039196,-188.84371441,0.00014998,2]
[327290014,1715967039224,-32.86292545,0.00014998,2]
[327290015,1715967039234,-194.0503279,0.00014998,2]
[327290016,1715967039244,-1866.08383141,0.00014999,2]
[327290017,1715967039253,-522.94149242,0.00014999,2]
[327290018,1715967039264,-80000.0,0.00015,2]
[327290019,1715967039274,-1148.90229176,0.00015,2]
[327290020,1715967039283,-463.48710032,0.00015465,2]
[327290021,1715967039293,-433.37241835,0.00015997,2]
[327290022,1715967039302,-1682.5168572,0.00015998,2]
[327290023,1715967039312,-7966.29275223,0.00016,2]
[327290024,1715967039322,-463.48710032,0.0001603,2]
[327290025,1715967039332,-268.16352056,0.0001643,2]
[327290026,1715967039342,-163.17955623,0.0001643,2]
[327290027,1715967039353,-154.79876161,0.00016432,2]
[327290028,1715967039363,-1046.00338095,0.00016434,2]
[327290029,1715967039373,-395.12068195,0.00016434,2]
[327290030,1715967039383,-708.95161168,0.00016434,2]
[327290031,1715967039394,-909.01656904,0.00016434,2]
[327290032,1715967039404,-155.16954056,0.00016434,2]
[327290033,1715967039414,-330.73596989,0.00016434,2]
[327290034,1715967039424,-2586.43189523,0.00016435,2]
[327290035,1715967039435,-2004.11949604,0.00016435,2]
[327290036,1715967039445,-157.27495146,0.00016435,2]
[327290037,1715967039455,-722.11383246,0.00016436,2]
[327290038,1715967039465,-9556.33105858,0.00016437,2]
[327290039,1715967039475,-930.78580745,0.00016437,2]
[327290040,1715967039484,-154.81422293,0.00016437,2]
[327290041,1715967039494,-4193.28484721,0.00016438,3]
[327290042,1715967039504,-500.0,0.00016438,2]
[327290043,1715967039514,-500.0,0.00016438,2]
[327290044,1715967039524,-508.46671421,0.00016438,2]
[327290045,1715967039534,-500.69722533,0.00016438,2]
[327290046,1715967039543,-569.65179403,0.00016438,2]
[327290047,1715967039554,-589.36,0.00016438,2]
[327290048,1715967039564,-502.20593887,0.00016438,2]
[327290049,1715967039575,-500.0,0.00016438,2]
[327290050,1715967039585,-500.0,0.00016438,2]
[327290051,1715967039595,-500.0,0.00016438,2]
[327290052,1715967039606,-500.0,0.00016438,2]
[327290053,1715967039616,-500.0,0.00016438,2]
[327290054,1715967039626,-496.33271539,0.00016438,2]
[327290055,1715967039636,-624.44,0.00016438,2]
[327290056,1715967039646,-500.0,0.00016438,2]
[327290057,1715967039656,-549.2543388,0.00016438,2]
[327290058,1715967039667,-607.26,0.00016438,2]
[327290059,1715967039676,-500.0,0.00016438,2]
[327290060,1715967039686,-500.0,0.00016438,2]
[327290061,1715967039696,-500.0,0.00016438,2]
[327290062,1715967039705,-500.0,0.00016438,2]
[327290064,1715967039716,-500.0,0.00016438,2]
[327290065,1715967039732,-500.0,0.00016438,2]
[327290066,1715967039742,-590.83875186,0.00016438,2]
[327290067,1715967039752,-503.23549711,0.00016438,2]
[327290068,1715967039763,-500.0,0.00016438,2]
[327290069,1715967039773,-602.2888841,0.00016438,2]
[327290070,1715967039782,-500.0,0.00016438,2]
[327290071,1715967039792,-511.39857816,0.00016438,2]
[327290072,1715967039803,-610.64,0.00016438,2]
[327290073,1715967039813,-501.85975324,0.00016438,2]
[327290074,1715967039822,-500.0,0.00016438,2]
[327290076,1715967039832,-500.0,0.00016438,2]
[327290077,1715967039842,-500.0,0.00016438,2]
[327290078,1715967039852,-500.0,0.00016438,2]
[327290079,1715967039862,-500.0,0.00016438,2]
[327290080,1715967039873,-332.03759347,0.00016438,2]
[327290081,1715967039883,-500.0,0.00016438,2]
[327290082,1715967039893,-500.0,0.00016438,2]
[327290083,1715967039904,-500.0,0.00016438,2]
[327290084,1715967039916,-348.90967529,0.00016438,2]
[327290085,1715967039925,-500.0,0.00016438,2]
[327290086,1715967039934,-360.4997949,0.00016438,2]
[327290087,1715967039943,-500.0,0.00016438,2]
[327290088,1715967039953,-504.49246044,0.00016438,2]
[327290089,1715967039963,-500.0,0.00016438,2]
[327290091,1715967039974,-500.0,0.00016438,2]
[327290093,1715967039984,-501.56644249,0.00016438,2]
[327290095,1715967039994,-500.0,0.00016438,2]
[327290096,1715967040004,-1000.0,0.00016438,2]
[327290097,1715967040014,-500.0,0.00016438,2]
[327290098,1715967040024,-500.0,0.00016438,2]
[327290099,1715967040033,-500.0,0.00016438,2]
[327290100,1715967040042,-554.8736587,0.00016438,2]
[327290101,1715967040053,-500.0,0.00016438,2]
[327290102,1715967040062,-500.0,0.00016438,2]
[327290103,1715967040072,-500.0,0.00016438,2]
[327290104,1715967040081,-500.0,0.00016438,2]
[327290105,1715967040091,-500.0,0.00016438,2]
[327290106,1715967040100,-500.0,0.00016438,2]
[327290107,1715967040110,-500.0,0.00016438,2]
[327290108,1715967040119,-500.0,0.00016438,2]
[327290109,1715967040129,-471.69264885,0.00016438,2]
[327290110,1715967040139,-500.0,0.00016438,2]
[327290111,1715967040148,-500.0,0.00016438,2]
[327290112,1715967040158,-500.0,0.00016438,2]
[327290113,1715967040169,-500.0,0.00016438,2]
[327290115,1715967040180,-500.0,0.00016438,2]
[327290117,1715967040190,-500.0,0.00016438,2]
[327290118,1715967040200,-500.0,0.00016438,2]
[327290119,1715967040210,-326.71865522,0.00016438,2]
[327290120,1715967040220,-500.0,0.00016438,2]
[327290121,1715967040230,-500.0,0.00016438,2]
[327290122,1715967040240,-500.0,0.00016438,2]
[327290123,1715967040249,-312.72951874,0.00016438,2]
[327290124,1715967040258,-500.0,0.00016438,2]
[327290125,1715967040266,-500.0,0.00016438,2]
[327290126,1715967040276,-500.0,0.00016438,2]
[327290127,1715967040286,-500.0,0.00016438,2]
[327290128,1715967040296,-500.0,0.00016438,2]
[327290129,1715967040305,-505.34706848,0.00016438,2]
[327290130,1715967040316,-500.0,0.00016438,2]
[327290131,1715967040326,-507.89263316,0.00016438,2]
[327290132,1715967040336,-504.44651926,0.00016438,2]
[327290133,1715967040346,-505.30069691,0.00016438,2]
[327290134,1715967040355,-500.0,0.00016438,2]
[327290135,1715967040365,-630.38,0.00016438,2]
[327290136,1715967040375,-500.0,0.00016438,2]
[327290137,1715967040385,-500.0,0.00016438,2]
[327290138,1715967040395,-500.0,0.00016438,2]
[327290139,1715967040406,-500.0,0.00016438,2]
[327290140,1715967040416,-500.0,0.00016438,2]
[327290141,1715967040425,-500.0,0.00016438,2]
[327290142,1715967040435,-500.0,0.00016438,2]
[327290143,1715967040445,-260.85550723,0.00016438,2]
[327290144,1715967040454,-500.0,0.00016438,2]
[327290145,1715967040464,-500.0,0.00016438,2]
[327290146,1715967040474,-619.94628701,0.00016438,2]
[327290147,1715967040483,-500.0,0.00016438,2]
[327290148,1715967040495,-531.34110359,0.00016438,2]
[327290149,1715967040505,-500.0,0.00016438,2]
[327290150,1715967040516,-500.0,0.00016438,2]
[327290151,1715967040526,-515.39551987,0.00016438,2]
[327290152,1715967040537,-500.0,0.00016438,2]
[327290153,1715967040547,-500.0,0.00016438,2]
[327290154,1715967040557,-500.0,0.00016438,2]
[327290155,1715967040567,-500.0,0.00016438,2]
[327290156,1715967040577,-500.0,0.00016438,2]
[327290157,1715967040587,-500.0,0.00016438,2]
[327290158,1715967040596,-500.0,0.00016438,2]
[327290159,1715967040606,-514.1380679,0.00016438,2]
[327290160,1715967040616,-500.0,0.00016438,2]
[327290161,1715967040626,-500.0,0.00016438,2]
[327290162,1715967040636,-503.55423237,0.00016438,2]
[327290163,1715967040646,-500.0,0.00016438,2]
[327290164,1715967040656,-500.0,0.00016438,2]
[327290165,1715967040667,-504.96722018,0.00016438,2]
[327290166,1715967040677,-500.0,0.00016438,2]
[327290167,1715967040687,-620.15,0.00016438,2]
[327290168,1715967040697,-303.8,0.00016438,2]
[327290169,1715967040707,-531.25128795,0.00016438,2]
[327290170,1715967040718,-500.0,0.00016438,2]
[327290171,1715967040731,-550.73,0.00016438,2]
[327290172,1715967040740,-500.0,0.00016438,2]
[327290173,1715967040751,-500.0,0.00016438,2]
[327290174,1715967040760,-500.0,0.00016438,2]
[327290175,1715967040771,-500.0,0.00016438,2]
[327290176,1715967040781,-500.0,0.00016438,2]
[327290177,1715967040791,-500.0,0.00016438,2]
[327290178,1715967040801,-416.31022307,0.00016438,2]
[327290179,1715967040811,-501.78677475,0.00016438,2]
[327290180,1715967040822,-500.0,0.00016438,2]
[327290181,1715967040832,-630.33823224,0.00016438,2]
[327290182,1715967040842,-500.0,0.00016438,2]
[327290183,1715967040852,-500.0,0.00016438,2]
[327290184,1715967040863,-500.0,0.00016438,2]
[327290185,1715967040872,-500.0,0.00016438,2]
[327290186,1715967040882,-500.0,0.00016438,2]
[327290187,1715967040892,-500.0,0.00016438,2]
[327290188,1715967040902,-500.0,0.00016438,2]
[327290189,1715967040912,-294.30194895,0.00016438,2]
[327290190,1715967040920,-500.0,0.00016438,2]
[327290191,1715967040929,-500.0,0.00016438,2]
[327290192,1715967040939,-500.0,0.00016438,2]
[327290193,1715967040948,-500.0,0.00016438,2]
[327290194,1715967040958,-502.55962726,0.00016438,2]
[327290195,1715967040968,-500.0,0.00016438,2]
[327290196,1715967040977,-500.0,0.00016438,2]
[327290197,1715967040987,-500.0,0.00016438,2]
[327290198,1715967040996,-500.0,0.00016438,2]
[327290199,1715967041006,-153.49150854,0.00016438,2]
[327290200,1715967041015,-500.0,0.00016438,2]
[327290201,1715967041025,-500.0,0.00016438,2]
[327290202,1715967041034,-500.0,0.00016438,2]
[327290203,1715967041044,-500.0,0.00016438,2]
[327290204,1715967041053,-500.0,0.00016438,2]
[327290205,1715967041062,-500.0,0.00016438,2]
[327290206,1715967041072,-500.0,0.00016438,2]
[327290207,1715967041081,-500.0,0.00016438,2]
[327290208,1715967041091,-193.55,0.00016438,2]
[327290209,1715967041100,-500.0,0.00016438,2]
[327290210,1715967041110,-590.46227602,0.00016438,2]
[327290211,1715967041119,-500.0,0.00016438,2]
[327290212,1715967041130,-500.0,0.00016438,2]
[327290213,1715967041139,-500.0,0.00016438,2]
[327290214,1715967041149,-500.0,0.00016438,4]
[327290215,1715967041158,-500.0,0.00016438,2]
[327290216,1715967041169,-500.0,0.00016438,2]
[327290217,1715967041179,-626.28,0.00016438,2]
[327290218,1715967041189,-500.0,0.00016438,2]
[327290219,1715967041199,-500.0,0.00016438,2]
[327290220,1715967041208,-502.29771368,0.00016438,2]
[327290221,1715967041218,-500.0,0.00016438,2]
[327290222,1715967041227,-500.0,0.00016438,2]
[327290223,1715967041236,-500.0,0.00016438,2]
[327290224,1715967041245,-502.83411061,0.00016438,2]
[327290225,1715967041255,-500.0,0.00016438,2]
[327290226,1715967041264,-563.83042221,0.00016438,2]
[327290227,1715967041274,-500.0,0.00016438,2]
[327290228,1715967041283,-150.0,0.00016438,2]
[327290229,1715967041292,-500.0,0.00016438,2]
[327290230,1715967041302,-500.0,0.00016438,2]
[327290231,1715967041312,-500.0,0.00016438,2]
[327290232,1715967041321,-500.0,0.00016438,2]
[327290233,1715967041330,-500.0,0.00016438,2]
[327290234,1715967041340,-500.0,0.00016438,2]
[327290235,1715967041350,-500.0,0.00016438,2]
[327290236,1715967041359,-500.0,0.00016438,2]
[327290237,1715967041369,-563.44,0.00016438,2]
[327290238,1715967041378,-500.0,0.00016438,2]
[327290239,1715967041387,-500.0,0.00016438,2]
[327290240,1715967041396,-500.0,0.00016438,2]
[327290241,1715967041405,-500.0,0.00016438,2]
[327290242,1715967041417,-1318.53,0.00016438,2]
[327290243,1715967041426,-500.0,0.00016438,2]
[327290244,1715967041436,-500.85326757,0.00016438,2]
[327290245,1715967041446,-500.0,0.00016438,2]
[327290246,1715967041455,-514.84409514,0.00016438,2]
[327290247,1715967041464,-500.0,0.00016438,2]
[327290248,1715967041474,-511.18308324,0.00016438,2]
[327290249,1715967041484,-500.0,0.00016438,2]
[327290250,1715967041494,-575.53,0.00016438,2]
[327290251,1715967041504,-506.42610505,0.00016438,2]
[327290252,1715967041513,-500.0,0.00016438,2]
[327290253,1715967041522,-502.10477674,0.00016438,2]
[327290254,1715967041532,-1000.0,0.00016438,2]
[327290255,1715967041541,-500.0,0.00016438,2]
[327290256,1715967041553,-500.0,0.00016438,2]
[327290257,1715967041563,-500.0,0.00016438,2]
[327290258,1715967041573,-500.0,0.00016438,2]
[327290259,1715967041582,-500.0,0.00016438,2]
[327290260,1715967041592,-500.0,0.00016438,2]
[327290261,1715967041602,-500.0,0.00016438,2]
[327290262,1715967041611,-500.0,0.00016438,2]
[327290263,1715967041621,-500.0,0.00016438,2]
[327290264,1715967041630,-500.0,0.00016438,2]
[327290265,1715967041640,-604.63,0.00016438,2]
[327290266,1715967041650,-500.0,0.00016438,2]
[327290267,1715967041659,-500.0,0.00016438,2]
[327290268,1715967041669,-500.0,0.00016438,2]
[327290269,1715967041678,-601.63243183,0.00016438,2]
[327290270,1715967041687,-500.0,0.00016438,2]
[327290271,1715967041697,-1921.12,0.00016438,2]
[327290272,1715967041706,-502.60247315,0.00016438,2]
[327290273,1715967041716,-500.0,0.00016438,2]
[327290274,1715967041731,-500.0,0.00016438,2]
[327290275,1715967041740,-500.0,0.00016438,2]
[327290276,1715967041750,-521.25921931,0.00016438,2]
[327290277,1715967041759,-500.0,0.00016438,2]
[327290278,1715967041770,-500.0,0.00016438,2]
[327290279,1715967041779,-466.43373108,0.00016438,2]
[327290280,1715967041789,-501.37931915,0.00016438,2]
[327290281,1715967041799,-500.0,0.00016438,2]
[327290282,1715967041808,-500.0,0.00016438,2]
[327290283,1715967041818,-500.0,0.00016438,2]
[327290284,1715967041827,-315.08786585,0.00016438,2]
[327290285,1715967041836,-157.50948132,0.00016438,2]
[327290286,1715967041846,-500.0,0.00016438,2]
[327290287,1715967041855,-500.0,0.00016438,2]
[327290288,1715967041865,-500.0,0.00016438,2]
[327290289,1715967041874,-501.92349467,0.00016438,2]
[327290290,1715967041884,-500.0,0.00016438,2]
[327290291,1715967041893,-500.0,0.00016438,2]
[327290292,1715967041903,-500.0,0.00016438,2]
[327290293,1715967041913,-500.0,0.00016438,2]
[327290294,1715967041922,-500.0,0.00016438,2]
[327290295,1715967041932,-500.0,0.00016438,2]
[327290296,1715967041942,-500.0,0.00016438,2]
[327290297,1715967041952,-500.0,0.00016438,2]
[327290298,1715967042067,-500.0,0.00016438,2]
[327290299,1715967042077,-601.83666588,0.00016438,2]
[327290300,1715967042086,-500.0,0.00016438,2]
[327290301,1715967042096,-500.0,0.00016438,2]
[327290302,1715967042106,-500.0,0.00016438,2]
[327290303,1715967042115,-500.0,0.00016438,2]
[327290304,1715967042125,-537.93709329,0.00016438,2]